Cogmind - Beta 16 *** ADVENTURER MODE // 2025.10.21 @ 23:34:04 Player: Big Tortoise Result: Destroyed by H-66 Slayer with Gauss Rifle Performance ------------- Evolutions (4) 2000 Regions Visited (4) 800 Robots Destroyed (16) 80 Value Destroyed (811) 811 Prototype IDs (12) 240 Alien Tech Used (0) 0 Bonus (800) 800 TOTAL SCORE: 4731 Bonus ------- Registered with UFD 300 Met Optimus in HQ 500 Cogmind --------- Core Integrity 0/850 Matter 86/300 Energy 154/160 System Corruption 0% Temperature Cool (1) Movement Hovering (51) Location -6/Factory Parts ------- > --- POWER (1) -------- Light Fission Core > --- PROPULSION (2) --- Gravmag System Improved Airjet > --- UTILITY (10) ----- Power Amplifier Improved Heat Sink Advanced Sensor Array Advanced Signal Interpreter Targeting Computer Targeting Computer Target Analyzer Target Analyzer Improved Reaction Control System System Shield > --- WEAPON (2) ------- Remote Datajack Spear > --- INVENTORY (5) ---- Weight Redist. System Gravity Neutralizer Gauss Rifle Multitool DRS Beacon (Ready) Peak State ------------ > --- POWER ------------ Light Fission Core > --- PROPULSION ------- Gravmag System Improved Airjet > --- UTILITY ---------- Power Amplifier Improved Heat Sink Advanced Sensor Array Advanced Signal Interpreter Targeting Computer Targeting Computer Target Analyzer Target Analyzer Improved Reaction Control System System Shield > --- WEAPON ----------- Remote Datajack Spear > --- INVENTORY -------- Weight Redist. System Gravity Neutralizer Gauss Rifle Multitool DRS Beacon [Rating: 58] Favorites ----------- Power Light Ion Engine Engine Light Ion Engine Power Core Light Fission Core Propulsion Aluminum Leg Treads Overtuned Treads Leg Aluminum Leg Hover Unit Gravmag System Utility Small Storage Unit Device Structural Scanner Storage Small Storage Unit Processor Targeting Computer Hackware System Shield Protection Improved Light Armor Plating Weapon Light Assault Rifle Energy Gun Medium Laser Ballistic Gun Light Assault Rifle Special Weapon Remote Datajack Piercing Weapon Spear Build | -11 -10 -10 -9 -6 ------- Run | Yrd Mat Sub Scr Fac Slots Evolved 8 | . . . . 8 Power . | . . . . . Propulsion . | . . . . . Utility 8 | . . . . 8 Weapon . | . . . . . Parts Attached 46 | 6 1 . 12 27 Power 3 | 1 . . 1 1 Engine 2 | 1 . . 1 . Core 1 | . . . . 1 Reactor . | . . . . . Propulsion 10 | 2 . . 4 4 Treads 1 | . . . 1 . Leg 5 | 2 . . 3 . Wheel . | . . . . . Hover 4 | . . . . 4 Flight . | . . . . . Utility 25 | 1 1 . 4 19 Device 10 | . . . 1 9 Storage 4 | 1 1 . 2 . Processor 7 | . . . 1 6 Hackware 1 | . . . . 1 Protection 3 | . . . . 3 Artifact . | . . . . . Weapon 8 | 2 . . 3 3 Energy Gun 1 | 1 . . . . Energy Cannon . | . . . . . Ballistic Gun 4 | 1 . . 2 1 Ballistic Cannon . | . . . . . Launcher . | . . . . . Special Weapon 2 | . . . 1 1 Impact Weapon . | . . . . . Slashing Weapon . | . . . . . Piercing Weapon 1 | . . . . 1 Special Melee Weapon . | . . . . . Unidentified Prototypes 3 | . . . 1 2 Parts Lost 14 | . . . . 14 Power 1 | . . . . 1 Propulsion 3 | . . . . 3 Utility 8 | . . . . 8 Weapon 2 | . . . . 2 Highest Loss Streak 11 | . . . . 11 To Critical Strikes . | . . . . . Average Backups 5 | . 1 4 7 4 Power . | . . . . . Propulsion . | . . . . . Utility 1 | . . . 1 1 Weapon 3 | . 1 4 4 . Tool/Special . | . . . . . Unused Backups 14 | . . . 10 4 Power 1 | . . . . 1 Propulsion . | . . . . . Utility 2 | . . . 1 1 Weapon 10 | . . . 9 1 Tool/Special 1 | . . . . 1 Average Slot Usage (%) 92 | . 93 100 99 72 Engine 11 | . 14 14 14 3 Leg 22 | . 28 28 27 7 Device 8 | . . . 6 18 Storage 17 | . 22 28 21 3 Processor 4 | . . . . 17 Energy Gun 10 | . 14 14 13 . Ballistic Gun 12 | . 14 14 14 7 Peak Build Rating 58 | 6 7 8 22 58 Average Rating 17 | 4 6 7 11 38 On Entrance 8 | . 6 7 8 22 Avg Prop Armor Cover (%) . | . . . . . Naked Turns . | . . . . . Heaviest Build 38 | 11 12 12 22 38 Greatest Support 38 | 20 20 20 38 38 Greatest Overweight (x) 4 | . . . . 4 Average Overweight (x) . | . . . . . Largest Inventory Capacity 10 | 8 8 8 10 10 Average Capacity 8 | 6 8 8 8 7 Most Carried 10 | . 4 7 10 9 Average Carried 6 | . 1 4 7 6 Final Capacity 10 | 8 8 8 10 5 Final Carried 10 | . 4 7 10 5 Scrap Suit Usage (%) 15 | . . . . 60 Parts Cannibalized 1 | . . . . 1 Class Distribution -------------------- 77% | Mutant 13% | Scavenger-Scrapper 5% | Scavenger-Mutant Dominant Class ---------------- Mutant | -10/Materials Mutant | -10/Subcaves Mutant | -9/Scraptown Scavenger-Scrapper | -6/Factory Resources | -11 -10 -10 -9 -6 ----------- Run | Yrd Mat Sub Scr Fac Matter Collected 992 | 206 . 30 342 414 Remotely . | . . . . . Salvage Created 702 | . . . 124 578 Parts 34 | . . . 1 33 Haulers Intercepted . | . . . . . Recyclers Shooed . | . . . . . Parts Field Recycled . | . . . . . Retrieved Matter . | . . . . . Parts Self-Destructed . | . . . . . Prevented . | . . . . . Parts Restored . | . . . . . Kills | -11 -10 -10 -9 -6 ------- Run | Yrd Mat Sub Scr Fac Combat Hostiles Destroyed 15 | . . . 3 12 Melee 6 | . . . . 6 Guns 9 | . . . 3 6 Classes Destroyed 8 | . . . 2 6 Operator 1 | . . . . 1 Swarmer 4 | . . . . 4 Grunt 2 | . . . . 2 Sentry 1 | . . . . 1 Hunter 2 | . . . . 2 Programmer 3 | . . . . 3 Federalist 2 | . . . 2 . Scrapper 1 | . . . 1 . Best Kill Streak 4 | . . . 3 4 Combat Bots Only 4 | . . . 3 4 Max Kills in Single Turn 1 | . . . 1 1 Gunslinging . | . . . . . Exploded . | . . . . . Melee 1 | . . . . 1 Uniques/NPCs Destroyed . | . . . . . Combat | -11 -10 -10 -9 -6 -------- Run | Yrd Mat Sub Scr Fac Hostile Shots Fired 366 | . . . 25 341 Missed 116 | . . . 1 115 Hits 250 | . . . 24 226 Projectile 250 | . . . 24 226 AOE 3 | . . . . 3 Critical Strikes 6 | . . . 1 5 Part Disruptions 2 | . . . . 2 Damage Taken 3283 | . . . 227 3056 Core 914 | . . . 64 850 Absorbed by Shields . | . . . . . Ignored by Resistances 925 | . . . 64 861 Regen/Repaired (Parts) 10 | . . . . 10 Core Remaining (%) 87 | 100 . . 74 . Volleys Fired 62 | . . . 10 52 Largest 2 | . . . 2 2 Hottest 55 | . . . 45 55 Shots Fired 117 | . . . 20 97 Gun 117 | . . . 20 97 Cannon . | . . . . . Launcher . | . . . . . Special . | . . . . . Kinetic 117 | . . . 20 97 Thermal . | . . . . . Explosive . | . . . . . Electromagnetic . | . . . . . Robot Hit Streak 29 | . . . 11 29 Robot Miss Streak 1 | . . . 1 1 Penetration Max . | . . . . . Secondary Targets 3 | . . . 1 2 Max Gunslinging Chain 1 | . . . 1 1 Shots Hit Robots 92 | . . . 19 73 Core Hits 35 | . . . 7 28 Critical Kills 2 | . . . . 2 Critical Parts Destroyed . | . . . . . Critical Strikes 5 | . . . . 5 Destroy 2 | . . . . 2 Impale 3 | . . . . 3 Melee Attacks 8 | . . . . 8 Impact . | . . . . . Slashing . | . . . . . Piercing 8 | . . . . 8 Sneak Attacks 1 | . . . . 1 Combat Hostiles 1 | . . . . 1 Follow-up Attacks . | . . . . . Damage Inflicted 1700 | . . . 245 1455 Guns 1358 | . . . 245 1113 Cannons . | . . . . . Explosions 54 | . . . . 54 Melee 288 | . . . . 288 Ramming . | . . . . . Kinetic 1358 | . . . 245 1113 Thermal . | . . . . . Explosive . | . . . . . Electromagnetic 54 | . . . . 54 Impact . | . . . . . Slashing . | . . . . . Piercing 288 | . . . . 288 Highest Corruption . | . . . . . Average Corruption . | . . . . . Corruption Purged . | . . . . . Corruption Blocked . | . . . . . Overload Shots . | . . . . . Overflow Damage . | . . . . . Projectiles . | . . . . . Explosions . | . . . . . Melee . | . . . . . Knockbacks . | . . . . . Impact . | . . . . . Kinetic . | . . . . . Secondary . | . . . . . Self-Inflicted Damage . | . . . . . Shots . | . . . . . Rammed . | . . . . . Targets Rammed . | . . . . . Kicked . | . . . . . Crushed . | . . . . . Highest Temperature 179 | . . . 179 117 Average Temperature 61 | . . . 88 46 Received Heat Transfer 922 | . . . 199 723 Siege Activations . | . . . . . Martial Activations . | . . . . . Shielding Activations . | . . . . . Robots Disrupted . | . . . . . Combat Hostiles . | . . . . . Robots Corrupted . | . . . . . Combat Hostiles . | . . . . . Parts Fried . | . . . . . Impact Corruptions . | . . . . . Robots Melted . | . . . . . Combat Hostiles . | . . . . . Parts Melted 3 | . . . 3 . Heat Transferred . | . . . . . Parts Sabotaged . | . . . . . Parts Stolen . | . . . . . Parts Stripped . | . . . . . Power Chain Reactions . | . . . . . Alert | -11 -10 -10 -9 -6 ------- Run | Yrd Mat Sub Scr Fac Maximum Alert Level 1 | . . . . 1 Low Security (%) 82 | 100 100 . . 77 Level 1 17 | . . . . 22 Level 2 . | . . . . . Level 3 . | . . . . . Level 4 . | . . . . . Level 5 . | . . . . . High Security . | . . . . . Max Security . | . . . . . Peak Influence 350 | . 4 . . 350 Initial . | . . . . . Average 72 | . . . . 95 Influence Increases 836 | . 11 . . 825 Destroy 0b10 Robot/C 240 | . . . . 240 Destroy 0b10 Robot/NC 5 | . . . . 5 Destroy Leader 70 | . . . . 70 Trap Triggered on 0b10 10 | . . . . 10 Successful Hack 45 | . 11 . . 34 Disable Machine 90 | . . . . 90 Destroy Structure 1 | . . . . 1 Partial Spotted 15 | . . . . 15 Lose Combat Pursuer 360 | . . . . 360 Influence Decreases 521 | . 11 . . 510 Time Decay 430 | . 11 . . 419 Lost Part 91 | . . . . 91 Squads Dispatched 6 | . . . . 6 Investigation 3 | . . . . 3 Extermination 3 | . . . . 3 Reinforcement . | . . . . . Assault . | . . . . . Garrison . | . . . . . Intercept . | . . . . . Searches Triggered . | . . . . . Construction Impeded . | . . . . . Haulers Reinforced . | . . . . . Active Scanning Responses . | . . . . . Cargo Convoy Interrupts . | . . . . . Stealth | -11 -10 -10 -9 -6 --------- Run | Yrd Mat Sub Scr Fac Distress Signals . | . . . . . Communications Jammed . | . . . . . Distress Signals . | . . . . . Times Spotted 55 | . 2 . 10 43 Peak Tracking Total 11 | . 2 . 4 11 Tactical Retreats 10 | . . . . 10 Traps | -11 -10 -10 -9 -6 ------- Run | Yrd Mat Sub Scr Fac Traps Triggered 4 | . . . . 4 Indirectly . | . . . . . Trap Hack Attempts . | . . . . . Triggered . | . . . . . Disarmed . | . . . . . Reprogrammed . | . . . . . Reused 1 | . . . . 1 Traps Extracted . | . . . . . Installed 2 | . . . 1 1 Triggered 1 | . . . . 1 Most Traps Carried 1 | . . . 1 1 Machines | -11 -10 -10 -9 -6 ---------- Run | Yrd Mat Sub Scr Fac Machines Disabled 10 | . . . . 10 Max in Single Turn 6 | . . . . 6 Machines Repaired . | . . . . . Machines Dismantled . | . . . . . Machines Sabotaged . | . . . . . Overloaded Fab Kills . | . . . . . Hacking | -11 -10 -10 -9 -6 --------- Run | Yrd Mat Sub Scr Fac Machines Accessed 22 | . 3 . 8 11 Terminals 8 | . 3 . . 5 Fabricators 1 | . . . . 1 Repair Stations . | . . . . . Recycling Units 3 | . . . . 3 Scanalyzers 2 | . . . . 2 Garrison Access . | . . . . . Total Hacks 83 | . 11 . 50 22 Successful 68 | . 7 . 50 11 Failed 15 | . 4 . . 11 Catastrophic . | . . . . . Database Lockouts . | . . . . . Manual 10 | . 2 . . 8 Terminals 21 | . 11 . . 10 Fabricators 3 | . . . . 3 Repair Stations . | . . . . . Recycling Units 6 | . . . . 6 Scanalyzers 3 | . . . . 3 Garrison Access . | . . . . . Terminal Hacks 59 | . 6 . 50 3 Record 44 | . . . 43 1 Robot Analysis 9 | . 3 . 6 . Prototype ID Bank 1 | . 1 . . . Open DSF 1 | . . . . 1 Branch Access Points 2 | . 1 . . 1 Zone Layout 1 | . 1 . . . Proto ID Catalog 1 | . . . 1 . Fabricator Hacks 1 | . . . . 1 Network Status 1 | . . . . 1 Repair Station Hacks . | . . . . . Recycling Unit Hacks . | . . . . . Scanalyzer 2 | . . . . 2 Retrieve Study 2 | . . . . 2 Garrison Access Hacks . | . . . . . Unauthorized Hacks 6 | . 1 . . 5 Terminals 2 | . 1 . . 1 Botnet 2 | . 1 . . 1 Fabricators . | . . . . . Repair Stations . | . . . . . Recycling Units 4 | . . . . 4 Recyclers 1 | . . . . 1 Fedlink 3 | . . . . 3 Scanalyzers . | . . . . . Garrison Access . | . . . . . Data Cores Recovered . | . . . . . Used . | . . . . . Hacking Detections 9 | . 2 . . 7 Full Trace Events . | . . . . . Feedback Events . | . . . . . Feedback Blocked . | . . . . . Robot Schematics Acquired . | . . . . . Robots Built . | . . . . . Authchips . | . . . . . Time . | . . . . . Total Robot Build Rating . | . . . . . Part Schematics Acquired . | . . . . . Parts Built . | . . . . . Authchips . | . . . . . Time . | . . . . . Total Part Build Rating . | . . . . . Part Studies Acquired 2 | . . . . 2 Parts Repaired . | . . . . . Time . | . . . . . Parts Recycled . | . . . . . Recycled Matter . | . . . . . Retrieved Matter . | . . . . . Retrieved Components . | . . . . . Parts Scanalyzed . | . . . . . Part Schematics Acquired . | . . . . . Parts Damaged . | . . . . . Bothacking | -11 -10 -10 -9 -6 ------------ Run | Yrd Mat Sub Scr Fac Used RIF Installer . | . . . . . Robots Hacked . | . . . . . Non-combat . | . . . . . Combat . | . . . . . Robot Hacks Applied . | . . . . . Relay Couplers Released . | . . . . . Fabnet Peak Effective % . | . . . . . Robots Rewired . | . . . . . Allies Hacked . | . . . . . Hacks Repelled . | . . . . . Allies | -11 -10 -10 -9 -6 -------- Run | Yrd Mat Sub Scr Fac Total Allies . | . . . . . Largest Group . | . . . . . Highest-Rated Group . | . . . . . Highest-Rated Ally . | . . . . . Total Orders . | . . . . . Ally Attacks . | . . . . . Total Damage . | . . . . . Kills . | . . . . . Allies Corrupted . | . . . . . Allies Melted 5 | . . . 5 . Intel | -11 -10 -10 -9 -6 ------- Run | Yrd Mat Sub Scr Fac Active Infowar (turns) 1879 | . . . 1042 837 Sensors 101 | . . . . 101 Structural 1778 | . . . 1042 736 Robot Analysis Total 9 | . 3 . 6 . Derelict Logs Recovered 2 | . . 1 1 . Drone Launches . | . . . . . Drone Recoveries . | . . . . . Exploration | -11 -10 -10 -9 -6 ------------- Run | Yrd Mat Sub Scr Fac Turns Passed 4147 | 57 274 357 2418 1041 Spaces Moved 3354 | 43 181 242 1846 1042 Core 330 | 4 . . . 326 Treads 2 | . . . 2 . Legs 2743 | 39 181 242 1844 437 Wheels . | . . . . . Hover 279 | . . . . 279 Flight . | . . . . . Fastest Speed 50 | 50 120 120 100 50 Average Speed 105 | 113 120 120 119 74 Slowest Speed 250 | 120 120 120 140 250 Overloaded Moves . | . . . . . Propulsion Burnouts . | . . . . . Robots Hopped . | . . . . . Potential Cave-ins . | . . . . . Cave-ins Triggered . | . . . . . Exploration Rate (%) 34 | 3 25 24 93 28 Regions Visited 4 Branch Regions 2 Pre-discovered Areas 3 | . . 2 . 1 Known Exits Taken . | . . . . . Unknown Exits Taken 4 | 1 1 1 1 . Scrap Searched 6 | . . . 6 . Spaces Dug . | . . . . . Terrain Destroyed . | . . . . . Melee . | . . . . . Projectile . | . . . . . AOE . | . . . . . Terrain Rammed . | . . . . . Walls Destroyed . | . . . . . Machines Disabled . | . . . . . Actions | -11 -10 -10 -9 -6 --------- Run | Yrd Mat Sub Scr Fac Total 3864 | 48 237 308 2044 1227 Wait 328 | . 52 64 135 77 Move 3350 | 42 180 241 1845 1042 Hop . | . . . . . Pick Up 25 | . 4 3 13 5 Fast Attach 40 | 6 1 . 10 23 Attach 9 | . . . 1 8 Detach 5 | . . . 1 4 Swap 3 | . . . 3 . Drop 32 | . . . 25 7 Fire 62 | . . . 10 52 Melee 8 | . . . . 8 Ram . | . . . . . Kick . | . . . . . Crush . | . . . . . Escape Stasis . | . . . . . Rewire . | . . . . . Trap 2 | . . . 1 1 Miscellaneous . | . . . . . Route ------- -11/Scrapyard -10/Materials (discovered 2 exits: Min / [*Sub]) -10/Subcaves -9/Scraptown (discovered 2 exits: *Fac x2) -6/Factory (discovered 4 exits: *Low x2 / Ext x2) History --------- Turn | Location | Event 3 | -11/Scrapyard | Discovered new exit (range 16) 58 | -11/Scrapyard | Entered Materials 59 | -10/Materials | Met a group of wandering Federalists 111 | -10/Materials | Identified exit to Mines 128 | -10/Materials | Discovered new exit (range 5) 303 | -10/Materials | Build established: Mutant 332 | -10/Materials | Entered Subcaves 333 | -10/Subcaves | Continued accompanying wandering Federalists (5) 338 | -10/Subcaves | Learned location of Mines (-10) 453 | -10/Subcaves | Learned location of Zion (-6) 453 | -10/Subcaves | Met a Zionite searching for "candidates" 527 | -10/Subcaves | A swath of the cavern ceiling suddenly collapsed 558 | -10/Subcaves | Lost 3 allies 568 | -10/Subcaves | Wandering Federalist uncovered a shortcut to Scraptown 689 | -10/Subcaves | Entered Scraptown 1074 | -9/Scraptown | Scanned Subdweller tech in exchange for log data 1077 | -9/Scraptown | Learned Factory stockpile data 1095 | -9/Scraptown | Discovered new exit (range 5) 1268 | -9/Scraptown | Visited The Evicted 1324 | -9/Scraptown | Visited TADAMA 1369 | -9/Scraptown | Visited SPCMW 1541 | -9/Scraptown | Visited Cave Peace 1687 | -9/Scraptown | Heard Great Nut preacher, LISTEN AND RECITE! 1783 | -9/Scraptown | Visited UFD Registry 1802 | -9/Scraptown | Visited Awakened 1874 | -9/Scraptown | Visited Comm Corps 1965 | -9/Scraptown | Visited Symbiants 2005 | -9/Scraptown | Registered with UFD as "Longsplitter" 2037 | -9/Scraptown | Visited Junk Repository 2093 | -9/Scraptown | Visited DA-N13 Charitable Foundation 2108 | -9/Scraptown | Found DCF Scrap (27 items) 2136 | -9/Scraptown | Visited Science Guys 2196 | -9/Scraptown | Visited Curators Association 2533 | -9/Scraptown | Visited Analyses Database 2689 | -9/Scraptown | Discovered new exit (range 5) 2761 | -9/Scraptown | Visited Derelict Rescue Squad 2793 | -9/Scraptown | Found DRS Beacon 2822 | -9/Scraptown | Visited Junk Repository 2914 | -9/Scraptown | Met Optimus 2914 | -9/Scraptown | Accepted into 0bPrime 2989 | -9/Scraptown | Visited LU-1G1's Boring Crew 3002 | -9/Scraptown | Civil war broke out across Scraptown 3026 | -9/Scraptown | Found Scrap Suit 3030 | -9/Scraptown | Found Scrap Suit 3080 | -9/Scraptown | Lost 7 allies 3107 | -9/Scraptown | Entered Factory 3107 | -6/Factory | Evolved 8 slots: Utility x8 3256 | -6/Factory | Loaded intel: 8 recycling unit locations 3288 | -6/Factory | Identified exit to DSF 3402 | -6/Factory | Build established: Scavenger-Scrapper 3448 | -6/Factory | Identified exit to Lower Caves 3448 | -6/Factory | Identified exit to Extension 3573 | -6/Factory | Learned location of Protoforge (-3) 3726 | -6/Factory | Core integrity fell below 50% 3768 | -6/Factory | Lost 11 parts (1p2n6u2w) 3847 | -6/Factory | Core integrity fell below 20% 4148 | -6/Factory | Destroyed by H-66 Slayer with Gauss Rifle Last Messages --------------- 04014_ S-27 Virus suffers critical hit (Impale). 04014_ S-27 Virus destroyed. 04018_ Acquired 26 matter. 04020_ Gravmag System destroyed. 04030_ Slug penetrates Wall. 04031_ Acquired Power Amplifier. 04043_ Acquired Gravmag System. 04043_ Penetrated by Slug. 04045_ Acquired Lgt. Fission Core. 04047_ Acquired Adv. Sensor Array. 04070_ Acquired Weight Redist. System. 04072_ Discarded Signal Interpreter. 04072_ Acquired Imp. Reaction Control System. 04084_ ALERT: Potential suspicious activity detected, Programmers report to Factory Zone 8B. 04114_ Dropped Gravmag System. 04115_ Acquired Prototype Hover Unit. 04115_ Identified Imp. Airjet. 04148_ Sneak attack on H-66 Slayer. 04148_ Penetrated by Slug. Map ----- +----------------------------------------------------+ | ??????????????????????????????? | | ??????????????????????????????? | | ??????????????????????????????? | | ??????????????????????????????> | | ??????????????????????????????? | | ??????????????????????????????? | | ??????????????????????????????? | | ??????????????????????????????? | | ??????????????????????????????? | | ??????????????????????????????? | | ??????????????????????????????? | | ??????????????????????????????? | | ??????????????????????????????? | | ??????????????????????????????? | | ???????????? ??????????????? | | ???????????? #????????????? | | ???????????# #????????????? | | ???????????# +?????????? | | ??########?#^ ^#?????????? | | ??#! * #?# #?????????? | | ??# #?# #?????????? | | ??# = #?# #?????????? | | ??# #?# #?????????? | | ??# #?# #?????????? | | ??# #?# #?????????# | | ??####@##### #?????????+ | | ?????#h #?????????# | | ?????# h #???????????# | | ?????# #???????????# | | ?????# #???????????# | | ?????#+####### #???????????# | | ???? ????# ############# | | ??# """"??# | | ??# """"#?#### ########## | | ??# """"#????# #????????# | | ??# """"#????# #????????# | | ??#= """??????#+#????????# | | ??# ""?????? ???????# | | ??# "??????# ?????# | | ??# ??????# ???# | | ??######??????# ?#! | | ??????????????# # = | | ??????????????# # | | ??????????????# # | | ??????????????# # | | ??????????????# ! # | | ??????????????# # | | ??????????????# # | | ??????????????# # | | ??????????????########+##??# | +----------------------------------------------------+ Best States ------------- Heat Dissipation 51 Energy Generation 20 Energy Capacity 160 Matter Stores 398 Matter Capacity 450 Sight Range 16 Robot Scan Range 16 Terrain Scan Density 10 Power Amplification 20 Armor Coverage 300 Resistance: KI 20 Resistance: TH 20 Resistance: EX 20 Resistance: EM 20 Resistance: I 20 Resistance: S 20 Resistance: P 20 Evasion (%) 64 Targeting Accuracy 15 Target Analysis 7 Recoil Reduction 1 Offensive Hacking 10 Defensive Hacking 10 Item Schematics ----------------- None Robot Schematics ------------------ None Fabricated ------------ Nothing Repaired ---------- Nothing Studied --------- Hvy. Machine Gun | -6/Factory | Hacked Spear | -6/Factory | Hacked Alien Tech Used ----------------- None Achievements -------------- Civilization 2243 DATA ERROR: Steam Global Achievement% I Have A Map? Item+ Link The Feds Strength In Numbers There's More Where That Came From Uncivil War Challenges ------------ None Game ------ Seed SubatomicLightpackShredder Manual? 0 Play Time 01:00:48 Cumulative 419.2 hours Start 2025.10.21 @ 22:26:46 End 2025.10.21 @ 23:34:04 Sessions 1 Manual Loads 0 Difficulty Adventurer Special Mode None Game No. 73 Rogue 14 Adventurer 54 Explorer 5 Win Type - Total 25 Types 9/2/5/4/1/0/1/2/1/0 Lore% 65 Gallery% 73 Achievement% 44 Wizard Run 0 Options --------- Layout 0 ASCII 0 Keyboard 0 Movement Numpad Keybinds 0 Fullscreen 1 Font 24/Smallcaps Map View 76x50 Zoom Use 16% Tactical HUD 1 Map Filters NONE Filters NONE Steam 1 RUN: ecce4fca-072e-4658-b7c7-4dbb9c9bb60e